bitfinex-derivatives/quotes_ETHF0:USTF0_20250607
["timestamp","ask_amount","ask_price","bid_price","bid_amount"]
[1749309282609,2.68814,2518.3,2518.2,0.79377]
[1749309283303,0.6379,2518.3,2518.2,0.79377]
[1749309283804,1.43164,2518.3,2518.2,0.79377]
[1749309284109,0.6379,2518.3,2518.2,0.79377]
[1749309284306,0.00594967,2518.5,2518.1,3.2078]
[1749309284506,0.00594967,2518.5,2518.4,0.79371]
[1749309287608,0.00594967,2518.5,2518.4,4.00151]
[1749309288611,0.00594967,2518.5,2518.4,5.30041]
[1749309289812,0.00594967,2518.5,2518.4,5.36932172]
[1749309290114,0.00594967,2518.5,2518.4,0.86262172]
[1749309290520,1.48772967,2518.5,2518.4,0.86262172]
[1749309290709,0.79375,2518.3,2518.2,0.79377]
[1749309290909,0.79375,2518.3,2518.0,3.2078]
[1749309290910,0.69404967,2518.5,2518.3,0.79374]
[1749309291411,0.79372,2518.4,2518.3,0.79374]
[1749309292013,0.79374,2518.3,2518.2,0.79375]
[1749309292314,0.79372,2518.4,2518.3,0.79374]
[1749309293314,0.69404967,2518.5,2518.4,0.79371]
[1749309294409,1.48772967,2518.5,2518.4,0.79371]
[1749309294811,1.48772967,2518.5,2518.4,0.06891172]
[1749309295020,1.48772967,2518.5,2518.4,0.86262172]
[1749309295417,0.69404967,2518.5,2518.4,0.86262172]
[1749309296821,0.00594967,2518.5,2518.4,0.86262172]
[1749309297119,0.00594967,2518.5,2518.4,0.06891172]
[1749309297120,0.79962967,2518.5,2518.4,0.06891172]
[1749309297317,0.79962967,2518.5,2518.4,0.86262172]
[1749309297514,0.79962967,2518.5,2518.4,0.06891172]
[1749309297718,0.79962967,2518.5,2518.4,0.79371]
[1749309297913,0.79962967,2518.5,2518.0,5.19233]
[1749309298113,0.79963967,2518.5,2518.0,3.2078]
[1749309298317,0.00594967,2518.5,2518.3,0.79372]
[1749309298617,0.79963967,2518.5,2518.4,0.79371]
[1749309298818,0.79963967,2518.5,2518.3,0.79372]
[1749309299019,0.00594967,2518.5,2518.4,0.79371]
[1749309299318,0.00594967,2518.5,2518.0,4.5547]
[1749309299518,0.79376,2518.3,2518.2,0.79376]
[1749309299722,0.79373,2518.4,2518.3,0.79374]
[1749309300223,2.08764967,2518.5,2518.3,0.79374]
[1749309300414,2.08764967,2518.5,2518.0,4.5547]
[1749309300615,0.79964967,2518.5,2518.4,0.79371]
[1749309300816,0.79964967,2518.5,2518.4,0.86262172]
[1749309301016,0.79964967,2518.5,2518.4,0.06891172]
[1749309301412,2.08764967,2518.5,2518.4,0.06891172]
[1749309301622,8.11389624,2518.5,2518.4,0.06891172]
[1749309301824,0.79395,2517.7,2517.6,0.79396]
[1749309302020,0.79392,2517.8,2517.6,0.79396]
[1749309302324,3.2078,2518.0,2517.6,0.79396]
[1749309302517,0.79393,2517.7,2517.6,0.79396]
[1749309302712,0.79399,2517.5,2517.3,1.3402]
[1749309302919,0.79398,2517.6,2517.4,0.79403]
[1749309303124,0.658,2517.6,2517.5,0.79399]
[1749309303322,0.658,2517.6,2517.4,0.79401]
[1749309303519,1.45198,2517.6,2517.4,0.79401]
[1749309303721,0.79404,2517.4,2517.2,0.79406]
[1749309303919,2.0564,2517.5,2517.1,4.905]
[1749309304119,2.0564,2517.5,2517.3,0.79403]
[1749309304526,2.0564,2517.5,2516.9,1.359]
[1749309304720,3.2078,2517.4,2517.2,0.79408]
[1749309305017,9.4961,2517.4,2516.9,1.42791172]
[1749309305222,9.4961,2517.4,2517.2,0.79407]
[1749309305423,9.4961,2517.4,2517.3,0.79406]
[1749309306031,9.4961,2517.4,2516.6,29.2055]
[1749309306328,9.4961,2517.4,2516.6,30.90368]
[1749309306522,9.4961,2517.4,2516.8,1.98554]
[1749309306723,3.2078,2517.4,2517.3,0.79406]
[1749309306931,3.2078,2517.8,2517.7,0.79393]
[1749309307125,0.6282,2518.1,2518.0,0.79384]
[1749309307323,8.1138,2518.2,2518.0,0.79383]
[1749309307522,1.8924,2518.1,2518.0,0.79384]
[1749309308931,1.8924,2518.1,2518.0,0.86275172]
[1749309310033,1.8924,2518.1,2518.0,0.79384]
[1749309310635,8.1138,2518.2,2518.1,0.7938]
[1749309311126,3.2078,2518.2,2518.1,0.7938]
[1749309311334,5.5578,2518.4,2518.3,0.79374]
[1749309311920,5.5578,2518.4,2517.8,3.2078]
[1749309312138,5.5578,2518.4,2518.0,0.79382]
[1749309312139,0.79379,2518.2,2518.0,0.79382]
[1749309312438,4.4801,2518.3,2518.0,0.79384]
[1749309312836,0.79379,2518.2,2518.0,0.79384]
[1749309313145,1.4249,2518.1,2518.0,0.86275172]
[1749309313542,0.6311,2518.1,2518.0,0.86275172]
[1749309313937,0.6311,2518.1,2518.0,0.79384]
[1749309315039,1.4249,2518.1,2518.0,0.79384]
[1749309315545,0.79384,2518.0,2517.9,0.06891172]
[1749309315754,8.90764,2518.0,2517.9,0.06891172]
[1749309316043,0.79393,2517.7,2517.6,0.79396]
[1749309316238,0.79396,2517.7,2517.6,0.79396]
[1749309316437,0.79397,2517.6,2517.2,1.389]
[1749309316641,4.0018,2517.5,2517.4,0.794]
[1749309316845,3.2078,2517.8,2517.2,1.98523]
[1749309317146,3.2078,2517.8,2517.1,1.389]
[1749309317440,0.79401,2517.5,2517.4,0.79402]
[1749309317647,0.79403,2517.4,2517.3,0.79403]
[1749309317843,0.79401,2517.5,2517.4,0.79402]
[1749309318042,5.5424,2517.7,2517.1,1.389]
[1749309318239,0.79401,2517.5,2517.1,1.389]
[1749309318447,0.794,2517.5,2517.4,0.794]
[1749309319044,7.62575,2517.7,2517.6,0.79396]
[1749309319444,0.79397,2517.6,2517.5,0.79397]
[1749309319948,6.33634,2517.7,2517.6,0.79396]
[1749309320444,5.5424,2517.7,2517.2,3.31473]
[1749309320748,6.33634,2517.7,2517.6,0.79396]
[1749309320947,0.79398,2517.6,2517.5,0.79398]
[1749309321446,0.794,2517.5,2517.4,0.794]
[1749309321746,0.79398,2517.6,2517.5,0.79398]
[1749309323044,5.5424,2517.7,2517.6,0.79396]
[1749309323246,6.33633,2517.7,2517.6,0.79396]
[1749309323648,0.6354,2517.7,2517.6,0.79396]
[1749309324450,1.42933,2517.7,2517.6,0.79396]
[1749309325251,0.6354,2517.7,2517.3,1.2958]
[1749309325552,0.79398,2517.6,2517.5,0.79397]
[1749309325951,0.79401,2517.5,2517.4,0.794]
[1749309326448,0.79401,2517.5,2517.3,1.2958]
[1749309326449,0.79398,2517.6,2517.5,0.79398]
[1749309326649,0.6354,2517.7,2517.6,0.79396]
[1749309327149,1.42933,2517.7,2517.6,0.79396]
[1749309327551,3.2078,2517.8,2517.7,0.79393]
[1749309327750,4.907,2517.9,2517.8,0.7939]
[1749309327947,4.4781,2518.1,2517.5,1.98497]
[1749309328254,4.907,2518.0,2517.9,0.86277172]
[1749309328453,5.70086,2518.0,2517.9,0.86277172]
[1749309328752,5.70086,2518.0,2517.9,0.06891172]
[1749309329343,8.07873345,2518.0,2517.9,0.06891172]
[1749309334053,1.02347345,2518.0,2517.9,0.06891172]
[1749309334248,1.81731345,2518.0,2517.9,0.06891172]
[1749309336350,1.81831518,2518.0,2517.9,0.06891172]
[1749309339058,3.11061518,2518.0,2517.9,0.06891172]
[1749309342757,0.79406,2517.3,2517.2,0.6739]
[1749309343159,0.79409,2517.2,2517.1,1.42601]
[1749309343361,0.79414,2517.1,2517.0,0.79414]
[1749309344163,0.79414,2517.1,2516.8,4.5601]
[1749309344164,0.79412,2517.2,2517.1,0.79412]
[1749309344754,0.79413,2517.1,2517.0,0.79414]
[1749309344955,0.79413,2517.1,2516.9,2.06806]
[1749309345260,0.79413,2517.1,2517.0,0.79415]
[1749309347360,0.7941,2517.2,2517.1,0.79411]
[1749309347859,0.79407,2517.3,2517.2,0.79407]
[1749309348059,0.79406,2517.3,2517.2,0.79406]
[1749309349861,0.79998967,2517.4,2517.3,0.79406]
[1749309350062,1.82480114,2517.4,2517.3,0.79406]
[1749309350270,0.79412,2517.1,2517.0,0.06891172]
[1749309350466,4.00192,2517.1,2517.0,0.06891172]
[1749309352169,4.00192,2517.1,2517.0,0.86306172]
[1749309352668,3.2078,2517.1,2517.0,0.86306172]
[1749309353673,4.00192,2517.1,2517.0,0.86306172]
[1749309355469,3.2078,2517.1,2517.0,0.86306172]
[1749309356370,4.00192,2517.1,2517.0,0.86306172]
[1749309356764,4.00192,2517.1,2517.0,0.06891172]
[1749309358069,1.98546,2517.0,2516.2,3.2078]
[1749309358371,0.79431,2516.5,2516.4,0.79431]
[1749309358569,3.2078,2516.8,2516.4,1.3884]
[1749309358775,0.6852,2517.0,2516.7,0.79422]
[1749309359069,6.35937,2517.0,2516.5,3.2078]
[1749309359276,0.79418,2516.9,2516.6,1.3884]
[1749309359766,5.67417,2517.0,2516.9,0.79418]
[1749309359973,0.79418,2516.9,2516.8,0.79419]
[1749309360668,5.67418,2517.0,2516.7,0.79424]
[1749309360874,5.67418,2517.0,2516.8,1.299]
[1749309361070,0.79418,2516.9,2516.8,1.299]
[1749309361268,4.88,2517.0,2516.5,3.2078]
[1749309361269,0.79422,2516.8,2516.5,3.2078]
[1749309361464,0.79424,2516.8,2516.6,1.299]
[1749309361671,4.88,2517.0,2516.5,3.2078]
[1749309361878,3.2078,2516.8,2516.5,0.79428]
[1749309362072,0.79428,2516.6,2516.5,0.79428]
[1749309362274,1.98538,2517.1,2516.3,1.3217]
[1749309362275,3.2078,2517.1,2516.7,0.79424]
[1749309362475,0.79421,2516.8,2516.7,0.79424]
[1749309362680,0.79424,2516.7,2516.6,0.79425]
[1749309362875,0.79423,2516.8,2516.4,1.299]
[1749309363177,0.79425,2516.7,2516.6,0.79425]
[1749309363477,4.834,2517.0,2516.5,0.79429]
[1749309363478,0.79429,2516.6,2516.5,0.79429]
[1749309363869,0.79431,2516.5,2516.4,2.09331]
[1749309364070,0.79431,2516.5,2516.3,1.3217]
[1749309364277,0.79434,2516.4,2516.3,1.3217]
[1749309364477,0.79434,2516.4,2516.3,2.11607]
[1749309364776,0.79434,2516.4,2516.3,1.3217]
[1749309365277,0.79434,2516.4,2516.3,2.11607]
[1749309365776,0.79434,2516.4,2516.3,1.3217]
[1749309366278,4.834,2516.6,2516.1,1.3476]
[1749309366475,6.1539,2516.6,2516.1,1.3476]
[1749309366676,0.79435,2516.4,2516.3,0.79435]
[1749309367073,0.79438,2516.3,2516.2,0.79438]
[1749309367579,0.79436,2516.4,2516.2,0.79438]
[1749309367776,0.79433,2516.5,2516.1,1.3476]
[1749309367975,0.6833,2516.7,2516.5,0.79428]
[1749309368173,0.79428,2516.6,2516.5,0.79429]
[1749309368473,3.8812,2516.8,2516.2,5.19381]
[1749309368474,8.7162,2516.8,2516.3,1.3801]
[1749309368680,0.79428,2516.6,2516.5,0.79429]
[1749309368980,5.86678,2516.8,2516.3,1.3801]
[1749309369180,0.79432,2516.5,2516.4,0.79433]
[1749309370372,0.7943,2516.6,2516.5,0.7943]
[1749309370576,5.62926,2516.7,2516.6,0.79428]
[1749309370975,0.79429,2516.6,2516.5,0.79428]
[1749309371181,5.62927,2516.7,2516.6,0.79427]
[1749309371381,0.79429,2516.6,2516.5,0.79429]
[1749309371881,8.83702,2516.8,2516.7,0.79424]
[1749309372178,8.83701,2516.8,2516.7,0.79424]
[1749309373172,8.0428,2516.8,2516.7,0.79424]
[1749309374076,4.835,2516.8,2516.7,0.79424]
[1749309374576,5.62921,2516.8,2516.7,0.79424]
[1749309374877,4.835,2516.8,2516.3,1.3801]
[1749309375080,0.79434,2516.5,2516.4,0.79433]
[1749309375286,0.79428,2516.6,2516.5,0.79431]
[1749309375482,3.2078,2516.9,2516.2,1.98601]
[1749309375792,0.79429,2516.6,2516.5,0.79429]
[1749309376084,0.79428,2516.7,2516.6,0.79427]
[1749309376281,0.79429,2516.6,2516.5,0.79429]
[1749309376978,0.79426,2516.7,2516.6,0.79425]
[1749309377789,4.835,2516.8,2516.2,1.98601]
[1749309377790,5.62923,2516.8,2516.7,0.79422]
[1749309378389,0.79429,2516.6,2516.5,0.79429]
[1749309378688,0.79435,2516.4,2516.3,0.79434]
[1749309379689,0.7944,2516.3,2516.2,0.79437]
[1749309380185,0.79436,2516.4,2516.3,0.79436]
[1749309380386,0.79434,2516.5,2516.4,0.79432]
[1749309380792,0.79435,2516.4,2516.3,0.79435]
[1749309381392,0.79438,2516.3,2516.2,0.79438]
[1749309381683,4.5115,2516.6,2516.0,1.3312]
[1749309381887,6.69108,2516.6,2516.5,0.06891172]
[1749309382390,5.30578,2516.6,2516.5,0.06891172]
[1749309382687,4.835,2516.8,2516.5,0.06891172]
[1749309382688,3.8537,2517.0,2516.7,0.79423]
[1749309382993,1.98527,2517.2,2516.5,2.05466172]
[1749309382994,0.7941,2517.2,2516.5,2.05466172]
[1749309383186,0.7941,2517.2,2517.1,0.7941]
[1749309383485,0.6317,2517.3,2517.2,0.79409]
[1749309383893,1.42576,2517.3,2517.2,0.79409]
[1749309384699,0.6317,2517.3,2517.2,0.79409]
[1749309384881,1.42576,2517.3,2517.0,0.79413]
[1749309385087,0.79409,2517.2,2516.8,3.2078]
[1749309385488,0.79409,2517.2,2517.1,0.79412]
[1749309385786,1.42577,2517.3,2517.1,0.79409]
[1749309385987,1.42577,2517.3,2517.2,0.79409]
[1749309386290,1.42577,2517.3,2517.1,0.7941]
[1749309386485,1.42577,2517.3,2517.2,0.79409]
[1749309386686,0.6317,2517.3,2517.2,0.79409]
[1749309387686,3.21374967,2517.4,2517.3,0.79406]
[1749309387995,0.00594967,2517.4,2517.3,0.79406]
[1749309388194,0.00594967,2517.4,2517.3,1.44516]
[1749309388994,0.00594967,2517.4,2517.3,6.44516]
[1749309389391,3.2078,2517.8,2517.7,0.79393]
[1749309390591,3.2078,2517.8,2517.5,0.79397]
[1749309390794,0.79393,2517.7,2517.6,0.79396]
[1749309391393,4.00172,2517.8,2517.6,0.79395]
[1749309392490,0.79393,2517.7,2517.6,0.79395]
[1749309392691,3.2078,2517.8,2517.7,0.79393]
[1749309394300,4.0017,2517.8,2517.7,0.79393]
[1749309396400,4.0017,2517.8,2517.6,0.86285172]
[1749309396593,0.79393,2517.7,2517.6,0.86285172]
[1749309396796,0.79393,2517.7,2517.6,0.06891172]
[1749309397292,3.2078,2517.8,2517.6,0.06891172]
[1749309397599,0.79393,2517.7,2517.6,0.06891172]
[1749309401302,0.79393,2517.7,2517.6,0.86287172]
[1749309401503,0.79393,2517.7,2517.6,0.06891172]
[1749309402605,2.06743,2517.7,2517.6,0.06891172]
[1749309404301,2.06743,2517.7,2517.6,0.86287172]
[1749309404501,2.06743,2517.7,2517.6,0.06891172]
[1749309404701,0.79393,2517.7,2517.6,0.86287172]
[1749309404908,4.00172,2517.8,2517.7,0.79393]
[1749309407207,0.79393,2517.7,2517.6,0.86285172]
[1749309407406,0.79393,2517.7,2517.6,0.06891172]
[1749309407800,0.79393,2517.7,2517.6,0.86287172]
[1749309408604,4.00171,2517.8,2517.7,0.79393]
[1749309408811,3.2078,2517.8,2517.7,0.79393]
[1749309409107,0.79389,2517.9,2517.8,0.7939]
[1749309409805,0.7939,2517.8,2517.7,0.79391]
[1749309411407,0.7939,2517.8,2517.7,0.86282172]
[1749309413610,0.7939,2517.8,2517.7,0.06891172]
[1749309415508,2.1859,2517.8,2517.7,0.06891172]
[1749309415711,3.23745997,2517.8,2517.7,0.06891172]
[1749309415913,2.1859,2517.8,2517.7,0.06891172]
[1749309416112,7.0049,2517.8,2517.7,0.06891172]
[1749309416314,3.23777084,2517.8,2517.7,0.06891172]
[1749309416513,5.6129,2517.8,2517.7,0.06891172]
[1749309418110,6.66517772,2517.8,2517.7,0.06891172]
[1749309418610,8.05127772,2517.8,2517.7,0.06891172]
[1749309420510,0.79409,2517.2,2517.1,0.00594967]
[1749309420715,5.05416772,2517.2,2517.1,0.00594967]
[1749309421911,7.07786772,2517.2,2517.1,9.67e-06]
[1749309422312,11.89686772,2517.2,2517.1,9.67e-06]
[1749309422910,7.07786772,2517.2,2517.1,9.67e-06]
[1749309423113,11.89686772,2517.2,2517.1,9.67e-06]
[1749309423919,11.85986772,2517.2,2517.1,9.67e-06]
[1749309424617,11.85986772,2517.2,2517.1,0.06892139]
[1749309424815,5.68446772,2517.2,2517.1,0.06892139]
[1749309425013,5.68446772,2517.2,2517.1,0.86304139]
[1749309425014,4.00189,2517.2,2517.1,0.86304139]
[1749309425410,0.79409,2517.2,2517.1,0.86304139]
[1749309425915,5.4617,2517.3,2517.2,0.79409]
[1749309426119,0.79409,2517.2,2517.1,0.86302139]
[1749309426516,0.79409,2517.2,2517.1,0.06892139]
[1749309427123,0.79409,2517.2,2517.1,0.86304139]
[1749309427620,0.79409,2517.2,2517.1,0.06892139]
[1749309428323,5.4617,2517.3,2517.2,0.79409]
[1749309428529,5.4617,2517.3,2517.1,0.86302139]
[1749309428530,0.79409,2517.2,2517.1,0.86302139]
[1749309429218,0.79409,2517.2,2517.1,0.06892139]
[1749309429423,4.00189,2517.2,2517.1,0.06892139]
[1749309429726,5.28949,2517.2,2517.1,0.06892139]
[1749309430027,4.00189,2517.2,2517.1,0.86304139]
[1749309430224,1.47278,2517.3,2517.2,0.79409]
[1749309430527,0.6787,2517.3,2517.2,0.79409]
[1749309432421,0.79403,2517.4,2517.3,0.79406]
[1749309432720,0.79403,2517.4,2517.3,0.79404]
[1749309435225,0.79407,2517.3,2517.2,0.79407]
[1749309436429,0.79408,2517.3,2517.1,0.06892139]
[1749309436629,0.79405,2517.4,2517.3,0.79405]
[1749309437222,3.2078,2517.5,2517.4,0.79402]
[1749309437820,4.00179,2517.5,2517.4,0.79402]
[1749309438133,0.79404,2517.4,2517.3,0.79404]
[1749309438431,4.00181,2517.5,2517.4,0.79402]
[1749309438627,3.2078,2517.5,2517.4,0.79402]
[1749309438835,5.4133,2517.9,2517.8,0.7939]
[1749309439032,4.783,2517.9,2517.7,0.79391]
[1749309439228,0.79392,2517.8,2517.7,0.79392]
[1749309440129,1.42869,2517.9,2517.8,0.7939]
[1749309440324,0.6348,2517.9,2517.2,3.2078]
[1749309440522,0.79404,2517.4,2517.3,0.79405]
[1749309442038,1.43881,2517.5,2517.4,0.79402]
[1749309442236,0.6448,2517.5,2517.4,0.79402]
[1749309442740,4.783,2517.6,2517.2,5.26191172]
[1749309442930,1.46502,2517.8,2517.3,1.3673]
[1749309443130,0.79393,2517.7,2517.6,0.79395]
[1749309443436,0.79396,2517.6,2517.5,0.79397]
[1749309443639,1.46501,2517.8,2517.7,0.79393]
[1749309443933,0.6448,2517.9,2517.8,0.7939]
[1749309444130,7.99674967,2518.0,2517.9,0.79387]
[1749309444432,3.21374967,2518.0,2517.2,5.26190172]
[1749309444640,1.3844,2517.9,2517.3,1.98515]
[1749309444833,2.1783,2517.9,2517.3,3.35245]
[1749309445033,0.7939,2517.9,2517.8,0.7939]
[1749309445737,7.99674967,2518.0,2517.5,0.6734]
[1749309445937,7.99674967,2518.0,2517.6,0.79393]
[1749309446142,7.99674967,2518.0,2517.5,0.6734]
[1749309446143,9.38064967,2518.0,2517.5,0.6734]
[1749309446438,0.79393,2517.8,2517.7,0.79393]
[1749309447632,7.99674967,2518.0,2517.6,0.6393]
[1749309447836,7.99674967,2518.0,2517.9,0.79387]
[1749309448336,3.21374967,2518.0,2517.9,0.79387]
[1749309449139,4.00760967,2518.0,2517.9,0.79387]
[1749309451240,0.79387,2517.9,2517.8,0.79387]
[1749309452136,0.79393,2517.7,2517.6,0.6393]
[1749309452334,0.79404,2517.4,2517.3,0.79404]
[1749309452539,0.794,2517.6,2517.5,0.79398]
[1749309452841,1.4361,2517.6,2517.5,0.79398]
[1749309453239,4.782,2517.8,2517.7,0.79393]
[1749309453442,6.21799,2517.9,2517.8,0.7939]
[1749309453741,0.79391,2517.8,2517.7,0.7939]
[1749309454342,0.79391,2517.8,2517.4,1.3262]
[1749309454343,0.79394,2517.7,2517.6,0.79394]
[1749309454538,0.79404,2517.4,2517.3,0.79403]
[1749309454743,0.6613,2517.6,2517.2,1.54297172]
[1749309454942,0.6613,2517.6,2517.2,0.68]
[1749309455143,0.6613,2517.6,2517.5,0.79399]
[1749309457046,1.45526,2517.6,2517.5,0.79399]
[1749309457448,0.6613,2517.6,2517.5,0.79399]
[1749309457742,5.36132,2517.8,2517.3,0.79406]
[1749309457947,10.14232,2517.8,2517.7,0.79393]
[1749309458144,5.4231,2517.9,2517.8,0.7939]
[1749309458349,0.6421,2517.9,2517.8,0.7939]
[1749309459838,0.00594967,2518.0,2517.9,0.79387]
[1749309460049,0.00594967,2518.0,2517.9,0.86278172]
[1749309461748,0.00594967,2518.0,2517.9,2.21738172]
[1749309463751,9.67e-06,2518.0,2517.9,7.21738172]
[1749309473652,4.586,2518.9,2518.8,0.79358]
[1749309474357,3.8911,2518.9,2518.8,0.79358]
[1749309477764,0.00594967,2519.1,2519.0,0.79352]
[1749309479461,9.67e-06,2519.1,2519.0,0.79352]
[1749309479650,4.779,2520.0,2519.7,0.7933]
[1749309479651,0.663,2519.8,2519.7,0.7933]
[1749309479851,4.582,2520.3,2520.2,0.79314]
[1749309480052,1.3182,2520.6,2520.5,0.79305]
[1749309480257,2.6924,2520.6,2520.5,0.79305]
[1749309480458,3.2078,2520.9,2520.8,0.79295]
[1749309480652,4.779,2521.2,2521.1,0.79286]
[1749309480855,9.779,2521.2,2521.1,0.79286]
[1749309481056,9.779,2521.2,2520.6,3.21374967]
[1749309481255,4.779,2521.2,2521.1,0.79284]
[1749309481458,4.779,2521.2,2521.0,0.79286]
[1749309482258,3.2078,2521.3,2521.1,0.79286]
[1749309482464,4.777,2521.2,2521.0,0.79287]
[1749309483569,0.66114967,2521.4,2521.3,0.7928]
[1749309483859,0.00594967,2521.4,2521.3,0.7928]
[1749309486170,5.00594967,2521.4,2520.6,4.77994967]
[1749309486363,0.00594967,2521.4,2521.3,0.7928]
[1749309488765,0.00594967,2521.4,2521.3,2.0896]
[1749309490169,0.6771,2521.8,2521.7,0.79267]
[1749309491067,0.6771,2521.8,2521.6,3.2078]
[1749309491270,0.6771,2521.8,2521.7,0.79267]
[1749309493470,0.67734967,2522.0,2521.9,0.79261]
[1749309494473,0.6779,2522.5,2522.0,1.98145]
[1749309494672,0.6779,2522.5,2522.4,0.79245]
[1749309496074,0.6268,2522.6,2522.5,0.79242]
[1749309497268,1.4192,2522.6,2522.4,0.79244]
[1749309497572,0.6268,2522.6,2522.5,0.79242]
[1749309498276,0.79243,2522.5,2522.3,4.772]
[1749309498469,0.6268,2522.6,2522.5,0.79242]
[1749309498774,1.4192,2522.6,2522.4,0.79243]
[1749309498968,0.6268,2522.6,2522.5,0.79242]
[1749309500767,5.6268,2522.6,2522.2,3.21374967]
[1749309500982,1.41919,2522.6,2522.2,3.21374967]
[1749309501169,0.6268,2522.6,2522.5,0.79242]
[1749309501677,3.21374967,2522.7,2522.6,0.79239]
[1749309502472,3.21374967,2522.7,2522.6,5.56339]
[1749309503568,3.21374967,2522.7,2522.3,0.6806]
[1749309503874,0.79248,2522.3,2522.2,0.00594967]
[1749309504076,0.79248,2522.3,2522.2,0.79846967]
[1749309504278,0.79248,2522.3,2522.2,0.00594967]
[1749309504773,0.79248,2522.3,2521.6,3.2078]
[1749309504774,5.0,2522.3,2521.6,0.79268]
[1749309504974,3.2078,2521.9,2521.8,0.79264]
[1749309505275,4.00041,2521.9,2521.4,28.758]
[1749309505474,3.8906,2521.9,2521.7,0.79267]
[1749309505675,1.47543,2521.9,2521.7,0.79267]
[1749309505881,0.6828,2521.9,2521.8,0.79264]
[1749309506080,1.47541,2521.9,2521.7,0.79265]
[1749309506282,0.6828,2521.9,2521.8,0.79264]
[1749309506480,1.47541,2521.9,2521.7,0.79265]
[1749309507082,1.47541,2521.9,2521.8,0.79264]
[1749309507083,0.6828,2521.9,2521.8,0.79264]
[1749309507671,0.6828,2521.9,2521.5,0.00594967]
[1749309507872,0.6828,2521.9,2521.8,0.79264]
[1749309509583,1.74136052,2521.9,2521.8,0.79264]
[1749309510084,1.74136052,2521.9,2521.5,0.00594967]
[1749309510380,1.74136052,2521.9,2521.5,1.35014967]
[1749309510381,1.47542,2521.9,2521.5,1.35014967]
[1749309510982,0.6828,2521.9,2521.8,0.79264]
[1749309511185,2.53425495,2521.9,2521.7,0.79265]
[1749309511380,0.79264,2521.8,2521.6,0.79269]
[1749309511780,0.79264,2521.8,2521.7,0.79267]
[1749309511985,1.85011177,2521.8,2521.7,0.79267]
[1749309512281,0.79271,2521.6,2521.5,0.00594967]
[1749309512478,1.84780756,2521.6,2521.5,0.00594967]
[1749309512881,5.05560756,2521.6,2521.5,0.00594967]
[1749309513081,4.26289756,2521.6,2521.5,0.79868967]
[1749309513675,5.05560756,2521.6,2521.5,0.00594967]
[1749309514088,5.05560756,2521.6,2521.5,0.79868967]
[1749309514289,5.05560756,2521.6,2521.5,0.00594967]
[1749309515083,6.43890756,2521.6,2521.5,0.00594967]
[1749309515480,1.05509756,2521.6,2521.5,0.79868967]
[1749309515691,0.2072,2521.8,2521.7,0.79267]
[1749309515890,1.26270167,2521.8,2521.7,0.79267]
[1749309516690,0.7927,2521.7,2521.5,0.79867967]
[1749309516880,1.05565219,2521.6,2521.5,0.79867967]
[1749309518190,1.84835219,2521.6,2521.5,0.00594967]
[1749309518385,3.24105219,2521.6,2521.5,0.79868967]
[1749309518687,3.24105219,2521.6,2521.5,0.00594967]
[1749309518888,2.1854,2521.6,2521.5,0.79868967]
[1749309519092,3.24069959,2521.6,2521.5,0.79868967]
[1749309519388,3.24069959,2521.6,2521.5,0.00594967]
[1749309520594,2.1854,2521.6,2521.5,0.00594967]
[1749309520787,1.3927,2521.6,2521.5,0.79868967]
[1749309520989,0.6443,2521.7,2521.6,0.7927]
[1749309521190,0.2523,2521.8,2521.7,0.79267]
[1749309521492,0.0451,2521.8,2521.7,0.79267]
[1749309523293,0.0451,2521.8,2521.7,2.14397]
[1749309523998,0.2438,2522.0,2521.9,0.79261]
[1749309524296,0.99979,2522.0,2521.9,0.79261]
[1749309525300,1.45066,2522.1,2522.0,0.79258]
[1749309525500,0.79259,2522.0,2521.9,0.79258]
[1749309526402,1.45067,2522.1,2522.0,0.79258]
[1749309526594,3.85846081,2522.1,2522.0,0.79258]
[1749309526793,3.06589081,2522.1,2522.0,0.79258]
[1749309526999,1.71289081,2522.1,2522.0,0.79258]
[1749309527401,3.2078,2522.2,2522.1,0.79255]
[1749309528103,1.67348,2522.3,2522.2,0.79252]
[1749309528500,0.881,2522.3,2522.2,0.79252]
[1749309529096,0.0366,2522.3,2522.2,0.79252]
[1749309529395,5.461,2522.4,2522.3,0.79248]
[1749309529794,6.51694594,2522.4,2522.3,0.79248]
[1749309530601,7.30939594,2522.4,2522.3,0.79248]
[1749309531303,6.47194594,2522.4,2522.3,0.79248]
[1749309531501,5.416,2522.4,2522.3,0.79248]
[1749309533808,0.2439,2522.6,2522.5,0.79242]
[1749309534199,0.00594967,2522.7,2522.6,0.79239]
[1749309534901,0.045,2522.9,2522.8,0.79233]
[1749309535511,0.045,2522.9,2522.8,2.07623]
[1749309537920,0.24984967,2523.1,2523.0,0.79226]
[1749309538816,0.24984967,2523.1,2523.0,2.08596]
[1749309539513,0.21324967,2523.1,2523.0,0.79226]
[1749309542420,0.0816,2523.3,2523.2,0.7922]
[1749309542620,0.0816,2523.3,2523.2,5.5612]
[1749309543015,0.0816,2523.3,2523.2,6.9371]
[1749309543427,0.0366,2523.3,2523.0,0.00594967]
[1749309543628,0.0366,2523.3,2523.0,0.79819967]
[1749309543629,1.3826,2523.2,2523.0,0.79819967]
[1749309543916,1.48193,2523.1,2523.0,0.00594967]
[1749309544123,1.3505,2523.1,2523.0,0.79821967]
[1749309544420,0.0366,2523.3,2523.2,0.7922]
[1749309545525,3.21374967,2523.5,2523.0,3.21374967]
[1749309545723,4.00585967,2523.5,2523.3,0.79215]
[1749309546025,0.79214,2523.4,2523.2,0.79218]
[1749309546224,1.44404,2523.4,2523.2,0.79218]
[1749309546528,2.83414,2523.4,2523.2,0.79218]
[1749309546724,2.042,2523.4,2523.3,0.79217]
[1749309548225,7.042,2523.4,2523.0,0.00594967]
[1749309548417,2.042,2523.4,2523.0,0.00594967]